[Event "Late-Titled-Tuesday-Blitz-April-30-2024"]
[Site "Chess.com"]
[Date "2024.04.30"]
[Round "3"]
[White "Hikaru"]
[Black "VD_coach"]
[Result "0-1"]
[WhiteElo "3200"]
[BlackElo "2543"]
[TimeControl "180+1"]
[EndTime "14:32:02 PDT"]
[Termination "VD_coach won by checkmate"]

1. a4 {[%clk 0:03:00.9]} 1... Nf6 {[%clk 0:02:57.6]} 2. h4 {[%clk 0:02:59.4]}
2... d5 {[%clk 0:02:46.2]} 3. g3 {[%clk 0:02:59.8]} 3... h5 {[%clk 0:02:43.6]}
4. Nh3 {[%clk 0:02:58.8]} 4... g6 {[%clk 0:02:43.8]} 5. d3 {[%clk 0:02:58.5]}
5... Bg7 {[%clk 0:02:44]} 6. Bg2 {[%clk 0:02:59]} 6... O-O {[%clk 0:02:43.1]} 7.
Nd2 {[%clk 0:02:58.5]} 7... c5 {[%clk 0:02:42]} 8. c3 {[%clk 0:02:56.7]} 8...
Nc6 {[%clk 0:02:42.1]} 9. O-O {[%clk 0:02:56.5]} 9... e5 {[%clk 0:02:35.9]} 10.
e4 {[%clk 0:02:56.5]} 10... d4 {[%clk 0:02:21.9]} 11. c4 {[%clk 0:02:50.2]}
11... Ng4 {[%clk 0:02:16.6]} 12. Nf3 {[%clk 0:02:42.8]} 12... Nb4 {[%clk
0:02:16.4]} 13. Ne1 {[%clk 0:02:42.1]} 13... Qe7 {[%clk 0:02:10.4]} 14. a5
{[%clk 0:02:42.5]} 14... Bd7 {[%clk 0:02:08]} 15. Bd2 {[%clk 0:02:42.6]} 15...
b6 {[%clk 0:02:02.9]} 16. Qe2 {[%clk 0:02:21.9]} 16... Rfb8 {[%clk 0:01:47.6]}
17. Bxb4 {[%clk 0:02:19.4]} 17... cxb4 {[%clk 0:01:47.5]} 18. b3 {[%clk
0:02:19.9]} 18... Qc5 {[%clk 0:01:45]} 19. axb6 {[%clk 0:02:18.6]} 19... axb6
{[%clk 0:01:44.4]} 20. Nc2 {[%clk 0:02:18.1]} 20... Bh6 {[%clk 0:01:37.7]} 21.
Qe1 {[%clk 0:02:11.7]} 21... Rxa1 {[%clk 0:01:29.1]} 22. Qxa1 {[%clk 0:02:12.6]}
22... b5 {[%clk 0:01:28.3]} 23. Qa5 {[%clk 0:02:11.6]} 23... Bf8 {[%clk
0:01:21.5]} 24. Ne1 {[%clk 0:01:52.5]} 24... bxc4 {[%clk 0:01:14.2]} 25. Qxc5
{[%clk 0:01:53.4]} 25... Bxc5 {[%clk 0:01:14.4]} 26. dxc4 {[%clk 0:01:53.8]}
26... Ra8 {[%clk 0:01:06.3]} 27. Nd3 {[%clk 0:01:53.7]} 27... Be7 {[%clk
0:01:00.9]} 28. Rb1 {[%clk 0:00:29.7]} 28... f6 {[%clk 0:00:55.4]} 29. Bf1
{[%clk 0:00:26.5]} 29... Kf7 {[%clk 0:00:42.5]} 30. c5 {[%clk 0:00:21.7]} 30...
Rc8 {[%clk 0:00:26.2]} 31. Nxb4 {[%clk 0:00:19.3]} 31... Rxc5 {[%clk 0:00:24.6]}
32. Bc4+ {[%clk 0:00:19.3]} 32... Be6 {[%clk 0:00:24.3]} 33. Bxe6+ {[%clk
0:00:18.9]} 33... Kxe6 {[%clk 0:00:24.5]} 34. Nd5 {[%clk 0:00:15.8]} 34... Rc2
{[%clk 0:00:22.8]} 35. Ra1 {[%clk 0:00:13.8]} 35... d3 {[%clk 0:00:19.7]} 36.
Kg2 {[%clk 0:00:13.5]} 36... Bc5 {[%clk 0:00:19.2]} 37. b4 {[%clk 0:00:13]}
37... Bxf2 {[%clk 0:00:18.9]} 38. Nxf2 {[%clk 0:00:08]} 38... Rxf2+ {[%clk
0:00:18.5]} 39. Kg1 {[%clk 0:00:08.8]} 39... Rb2 {[%clk 0:00:16.4]} 40. Rd1
{[%clk 0:00:08.8]} 40... Nf2 {[%clk 0:00:14.6]} 41. Rf1 {[%clk 0:00:06.6]} 41...
Nh3+ {[%clk 0:00:14.5]} 42. Kh1 {[%clk 0:00:06.9]} 42... Nf2+ {[%clk 0:00:14.8]}
43. Kg1 {[%clk 0:00:06.6]} 43... Nh3+ {[%clk 0:00:15]} 44. Kh1 {[%clk
0:00:06.4]} 44... d2 {[%clk 0:00:15.3]} 45. Ne3 {[%clk 0:00:06.3]} 45... g5
{[%clk 0:00:14.3]} 46. Nd1 {[%clk 0:00:03.7]} 46... Rb1 {[%clk 0:00:13.4]} 47.
Kg2 {[%clk 0:00:04]} 47... g4 {[%clk 0:00:13.8]} 48. Nc3 {[%clk 0:00:04.6]}
48... Rxb4 {[%clk 0:00:13.1]} 49. Ra1 {[%clk 0:00:04.2]} 49... Rb2 {[%clk
0:00:12.6]} 50. Nd1 {[%clk 0:00:04.4]} 50... Rc2 {[%clk 0:00:12.3]} 51. Kf1
{[%clk 0:00:05.1]} 51... Rc1 {[%clk 0:00:12.7]} 52. Ra6+ {[%clk 0:00:05.7]}
52... Kd7 {[%clk 0:00:12.9]} 53. Ke2 {[%clk 0:00:06.6]} 53... Ng1+ {[%clk
0:00:12.2]} 54. Kxd2 {[%clk 0:00:07.2]} 54... Rc4 {[%clk 0:00:12.2]} 55. Rxf6
{[%clk 0:00:06.5]} 55... Rd4+ {[%clk 0:00:11.7]} 56. Kc2 {[%clk 0:00:06.7]}
56... Nf3 {[%clk 0:00:12.4]} 57. Nc3 {[%clk 0:00:06]} 57... Rd2+ {[%clk
0:00:12.5]} 58. Kb3 {[%clk 0:00:06.6]} 58... Rg2 {[%clk 0:00:12.4]} 59. Rh6
{[%clk 0:00:07.3]} 59... Rxg3 {[%clk 0:00:12.3]} 60. Rxh5 {[%clk 0:00:08.1]}
60... Nd4+ {[%clk 0:00:12.5]} 61. Kc4 {[%clk 0:00:08.5]} 61... Rf3 {[%clk
0:00:10.3]} 62. Rxe5 {[%clk 0:00:08.6]} 62... Ne6 {[%clk 0:00:08.7]} 63. Rf5
{[%clk 0:00:08.4]} 63... Rxf5 {[%clk 0:00:06.9]} 64. exf5 {[%clk 0:00:09.3]}
64... Ng7 {[%clk 0:00:07.5]} 65. f6 {[%clk 0:00:09.2]} 65... Nh5 {[%clk
0:00:07.8]} 66. Kd5 {[%clk 0:00:06.9]} 66... Nxf6+ {[%clk 0:00:07.5]} 67. Ke5
{[%clk 0:00:07.5]} 67... Nh5 {[%clk 0:00:06.9]} 68. Kf5 {[%clk 0:00:08.4]} 68...
g3 {[%clk 0:00:07.4]} 69. Ne2 {[%clk 0:00:09]} 69... g2 {[%clk 0:00:07.7]} 70.
Kg5 {[%clk 0:00:09.3]} 70... Ng7 {[%clk 0:00:07.9]} 71. Kg6 {[%clk 0:00:09.4]}
71... Ne6 {[%clk 0:00:08.2]} 72. Kf5 {[%clk 0:00:09]} 72... Nd4+ {[%clk
0:00:07.8]} 73. Nxd4 {[%clk 0:00:09.2]} 73... g1=Q {[%clk 0:00:08.7]} 74. Nf3
{[%clk 0:00:10.1]} 74... Qf1 {[%clk 0:00:08.6]} 75. Ke4 {[%clk 0:00:09.9]} 75...
Qh3 {[%clk 0:00:08.1]} 76. Kf4 {[%clk 0:00:10.1]} 76... Ke7 {[%clk 0:00:08.4]}
77. Ke3 {[%clk 0:00:09.5]} 77... Kf6 {[%clk 0:00:08.1]} 78. Kf4 {[%clk
0:00:10.4]} 78... Kg6 {[%clk 0:00:07.2]} 79. Ke4 {[%clk 0:00:07.6]} 79... Kh5
{[%clk 0:00:07.5]} 80. Kf4 {[%clk 0:00:08.1]} 80... Qg4+ {[%clk 0:00:07.4]} 81.
Ke3 {[%clk 0:00:08.7]} 81... Qg3 {[%clk 0:00:07.8]} 82. Ke4 {[%clk 0:00:09.3]}
82... Qf2 {[%clk 0:00:07.6]} 83. Nd4 {[%clk 0:00:10.2]} 83... Kxh4 {[%clk
0:00:07.3]} 84. Kd5 {[%clk 0:00:11.1]} 84... Kg5 {[%clk 0:00:06.9]} 85. Ne6+
{[%clk 0:00:11.4]} 85... Kf6 {[%clk 0:00:06.7]} 86. Nc5 {[%clk 0:00:12.3]} 86...
Qe3 {[%clk 0:00:06.8]} 87. Ne4+ {[%clk 0:00:12.4]} 87... Kf5 {[%clk 0:00:06.5]}
88. Nd6+ {[%clk 0:00:13.1]} 88... Kf4 {[%clk 0:00:07.1]} 89. Nc4 {[%clk
0:00:13.7]} 89... Qe4+ {[%clk 0:00:07.4]} 90. Kc5 {[%clk 0:00:14.3]} 90... Qc2
{[%clk 0:00:07.6]} 91. Kd4 {[%clk 0:00:14.8]} 91... Qd1+ {[%clk 0:00:07.5]} 92.
Kc3 {[%clk 0:00:15.5]} 92... Ke4 {[%clk 0:00:07.2]} 93. Nd2+ {[%clk 0:00:16.3]}
93... Kd5 {[%clk 0:00:07.7]} 94. Kd3 {[%clk 0:00:16.4]} 94... Qa1 {[%clk
0:00:06.8]} 95. Ke3 {[%clk 0:00:16.9]} 95... Qd4+ {[%clk 0:00:06.8]} 96. Ke2
{[%clk 0:00:17.5]} 96... Qe5+ {[%clk 0:00:06.8]} 97. Kd3 {[%clk 0:00:17.6]}
97... Qe8 {[%clk 0:00:07.1]} 98. Nb3 {[%clk 0:00:16.6]} 98... Qg6+ {[%clk
0:00:06.3]} 99. Kc3 {[%clk 0:00:17.1]} 99... Qg3+ {[%clk 0:00:06.6]} 100. Kc2
{[%clk 0:00:17.4]} 100... Qe3 {[%clk 0:00:06.1]} 101. Nd2 {[%clk 0:00:17.6]}
101... Kd4 {[%clk 0:00:05.2]} 102. Nb3+ {[%clk 0:00:18.1]} 102... Kc4 {[%clk
0:00:05.6]} 103. Nd2+ {[%clk 0:00:18.8]} 103... Kb4 {[%clk 0:00:06.1]} 104. Nb1
{[%clk 0:00:19.3]} 104... Qb3+ {[%clk 0:00:04.5]} 105. Kc1 {[%clk 0:00:19.6]}
105... Qa2 {[%clk 0:00:04.5]} 106. Nd2 {[%clk 0:00:19.9]} 106... Kc3 {[%clk
0:00:04.6]} 107. Ne4+ {[%clk 0:00:20.7]} 107... Kd3 {[%clk 0:00:04.8]} 108. Nc5+
{[%clk 0:00:21.2]} 108... Kc4 {[%clk 0:00:05.1]} 109. Nd7 {[%clk 0:00:21.9]}
109... Qe2 {[%clk 0:00:04.5]} 110. Nb6+ {[%clk 0:00:21.7]} 110... Kb3 {[%clk
0:00:04.1]} 111. Nd5 {[%clk 0:00:22.6]} 111... Qc2# {[%clk 0:00:04.2]} 0-1

[Event "Late-Titled-Tuesday-Blitz-April-30-2024"]
[Site "Chess.com"]
[Date "2024.04.30"]
[Round "3"]
[White "Casablanca"]
[Black "ALBERT_KLOC"]
[Result "0-1"]
[WhiteElo "2629"]
[BlackElo "2505"]
[TimeControl "180+1"]
[EndTime "14:32:07 PDT"]
[Termination "ALBERT_KLOC won by resignation"]

1. c4 {[%clk 0:02:57.7]} 1... c5 {[%clk 0:02:57.5]} 2. Nf3 {[%clk 0:02:57]} 2...
Nc6 {[%clk 0:02:57]} 3. g3 {[%clk 0:02:56.9]} 3... g6 {[%clk 0:02:56]} 4. Bg2
{[%clk 0:02:57.2]} 4... Bg7 {[%clk 0:02:56.6]} 5. O-O {[%clk 0:02:57.9]} 5... d6
{[%clk 0:02:57.1]} 6. Nc3 {[%clk 0:02:57.4]} 6... Be6 {[%clk 0:02:57.4]} 7. d3
{[%clk 0:02:56.1]} 7... Qd7 {[%clk 0:02:57.7]} 8. Ng5 {[%clk 0:02:53.9]} 8...
Bf5 {[%clk 0:02:55.2]} 9. e4 {[%clk 0:02:52.1]} 9... Bg4 {[%clk 0:02:55.4]} 10.
f3 {[%clk 0:02:52.4]} 10... Bd4+ {[%clk 0:02:53.9]} 11. Kh1 {[%clk 0:02:52.2]}
11... f6 {[%clk 0:02:54.2]} 12. fxg4 {[%clk 0:02:50.1]} 12... fxg5 {[%clk
0:02:54.3]} 13. Bxg5 {[%clk 0:02:47.9]} 13... h6 {[%clk 0:02:51.1]} 14. Bf4
{[%clk 0:02:35.7]} 14... Nf6 {[%clk 0:02:28.4]} 15. h3 {[%clk 0:02:30.9]} 15...
g5 {[%clk 0:02:14.8]} 16. Bd2 {[%clk 0:02:27.7]} 16... Ne5 {[%clk 0:02:05.5]}
17. Qe2 {[%clk 0:02:28.1]} 17... h5 {[%clk 0:01:35]} 18. Bxg5 {[%clk 0:02:21.7]}
18... hxg4 {[%clk 0:01:34.3]} 19. h4 {[%clk 0:02:22]} 19... Nh5 {[%clk
0:01:30.7]} 20. Kh2 {[%clk 0:02:19.9]} 20... O-O-O {[%clk 0:01:27.5]} 21. Nd5
{[%clk 0:02:18.7]} 21... e6 {[%clk 0:01:12.4]} 22. Bxd8 {[%clk 0:02:16.8]} 22...
Qxd8 {[%clk 0:01:11.5]} 23. Rh1 {[%clk 0:01:39.9]} 23... exd5 {[%clk 0:01:10.2]}
24. Raf1 {[%clk 0:01:40.5]} 24... dxc4 {[%clk 0:01:06.6]} 25. dxc4 {[%clk
0:01:37.3]} 25... Kb8 {[%clk 0:00:47.4]} 26. b3 {[%clk 0:01:34.3]} 26... Nc6
{[%clk 0:00:26.4]} 27. Qxg4 {[%clk 0:01:30.2]} 27... Be5 {[%clk 0:00:26.7]} 28.
Kg1 {[%clk 0:01:06]} 28... Nxg3 {[%clk 0:00:26.4]} 29. Rh3 {[%clk 0:01:05.3]}
29... Nxf1 {[%clk 0:00:26.4]} 30. Kxf1 {[%clk 0:01:04.4]} 30... Rf8+ {[%clk
0:00:24.9]} 31. Kg1 {[%clk 0:01:01.9]} 31... Nd4 {[%clk 0:00:23.4]} 32. h5
{[%clk 0:00:59.6]} 32... Rg8 {[%clk 0:00:23.3]} 33. Qd1 {[%clk 0:00:56.9]} 33...
Qg5 {[%clk 0:00:23.1]} 34. Qf1 {[%clk 0:00:56.8]} 34... Qg4 {[%clk 0:00:19.9]}
35. Kh1 {[%clk 0:00:55.1]} 35... Ne2 {[%clk 0:00:19]} 36. Qf3 {[%clk 0:00:52.5]}
36... Ng3+ {[%clk 0:00:13.6]} 37. Kh2 {[%clk 0:00:43.7]} 37... Nf1+ {[%clk
0:00:09.8]} 38. Kg1 {[%clk 0:00:41]} 38... Qxf3 {[%clk 0:00:10.2]} 39. Rxf3
{[%clk 0:00:41.5]} 39... Nd2 {[%clk 0:00:10.5]} 40. Rh3 {[%clk 0:00:38.6]} 40...
Nxe4 {[%clk 0:00:10.5]} 41. h6 {[%clk 0:00:37.7]} 41... Nf6 {[%clk 0:00:10.8]}
42. Kf1 {[%clk 0:00:34.9]} 42... Kc7 {[%clk 0:00:10.9]} 43. Ke2 {[%clk
0:00:35.1]} 43... b6 {[%clk 0:00:11.3]} 44. Bf3 {[%clk 0:00:34.7]} 44... Kd7
{[%clk 0:00:11.7]} 45. Rh1 {[%clk 0:00:30.7]} 45... Ke7 {[%clk 0:00:12.1]} 46.
a4 {[%clk 0:00:28]} 46... Rh8 {[%clk 0:00:12.5]} 47. a5 {[%clk 0:00:28.2]} 47...
Ng8 {[%clk 0:00:12.7]} 48. axb6 {[%clk 0:00:27.5]} 48... axb6 {[%clk 0:00:13.6]}
49. Ra1 {[%clk 0:00:27.3]} 49... Nxh6 {[%clk 0:00:13]} 50. Ra7+ {[%clk
0:00:28.2]} 50... Kf6 {[%clk 0:00:13.6]} 51. Rb7 {[%clk 0:00:28.9]} 51... Nf5
{[%clk 0:00:13]} 52. Bd5 {[%clk 0:00:28]} 52... Nd4+ {[%clk 0:00:13.4]} 53. Ke3
{[%clk 0:00:28.6]} 53... Rh3+ {[%clk 0:00:13.5]} 54. Ke4 {[%clk 0:00:29.2]}
54... Rh4+ {[%clk 0:00:13]} 55. Ke3 {[%clk 0:00:29.7]} 55... Rh3+ {[%clk
0:00:13.6]} 56. Ke4 {[%clk 0:00:30.2]} 56... Rxb3 {[%clk 0:00:14.3]} 57. Rf7+
{[%clk 0:00:29.9]} 57... Kg6 {[%clk 0:00:14.5]} 58. Rf8 {[%clk 0:00:30.8]} 58...
Rb2 {[%clk 0:00:14.6]} 59. Rg8+ {[%clk 0:00:31.2]} 59... Kf6 {[%clk 0:00:15]}
60. Rf8+ {[%clk 0:00:31.7]} 60... Kg5 {[%clk 0:00:15.6]} 61. Rg8+ {[%clk
0:00:32]} 61... Kh4 {[%clk 0:00:16]} 62. Ke3 {[%clk 0:00:26.7]} 62... Rb3+
{[%clk 0:00:15.8]} 63. Ke4 {[%clk 0:00:26.3]} 63... b5 {[%clk 0:00:16.2]} 64.
cxb5 {[%clk 0:00:20.7]} 64... Rxb5 {[%clk 0:00:17.1]} 65. Ke3 {[%clk 0:00:18.5]}
65... Rb1 {[%clk 0:00:16.9]} 66. Kf2 {[%clk 0:00:18.8]} 66... Rb2+ {[%clk
0:00:16.8]} 67. Ke3 {[%clk 0:00:18.3]} 67... Re2+ {[%clk 0:00:17]} 68. Kd3
{[%clk 0:00:18.3]} 68... Rf2 {[%clk 0:00:17.7]} 69. Be4 {[%clk 0:00:18.3]} 69...
Rf4 {[%clk 0:00:15.9]} 70. Bd5 {[%clk 0:00:18.6]} 70... Nf5 {[%clk 0:00:14.2]}
71. Be6 {[%clk 0:00:17.9]} 71... Rd4+ {[%clk 0:00:14]} 72. Ke2 {[%clk
0:00:17.7]} 72... Ng3+ {[%clk 0:00:13.9]} 73. Ke3 {[%clk 0:00:18.1]} 73... Re4+
{[%clk 0:00:12.8]} 74. Kf3 {[%clk 0:00:17.9]} 74... Rf4+ {[%clk 0:00:12.9]} 75.
Ke3 {[%clk 0:00:18.4]} 75... Nf5+ {[%clk 0:00:13.1]} 76. Ke2 {[%clk 0:00:18.7]}
76... Re4+ {[%clk 0:00:13.1]} 77. Kf3 {[%clk 0:00:17.9]} 77... Re3+ {[%clk
0:00:13.6]} 78. Kf2 {[%clk 0:00:17.9]} 78... Bg3+ {[%clk 0:00:11.9]} 79. Kg2
{[%clk 0:00:18.7]} 79... Re2+ {[%clk 0:00:11.5]} 80. Kf3 {[%clk 0:00:18.6]}
80... Rxe6 {[%clk 0:00:11.2]} 81. Rh8+ {[%clk 0:00:19.2]} 81... Rh6 {[%clk
0:00:10.7]} 82. Rg8 {[%clk 0:00:19.8]} 82... Nd4+ {[%clk 0:00:11]} 83. Ke4
{[%clk 0:00:20]} 83... Be5 {[%clk 0:00:11.1]} 84. Rg1 {[%clk 0:00:19.9]} 84...
Kh5 {[%clk 0:00:11.1]} 85. Kd5 {[%clk 0:00:18.3]} 85... Rg6 {[%clk 0:00:11.4]}
86. Rh1+ {[%clk 0:00:18.8]} 86... Kg5 {[%clk 0:00:11.7]} 87. Rg1+ {[%clk
0:00:19.7]} 87... Kf6 {[%clk 0:00:12.3]} 88. Rf1+ {[%clk 0:00:20.6]} 88... Ke7
{[%clk 0:00:12.8]} 89. Ra1 {[%clk 0:00:21.1]} 89... Rg1 {[%clk 0:00:12.8]} 90.
Ra7+ {[%clk 0:00:22]} 90... Kf6 {[%clk 0:00:13.4]} 91. Ra8 {[%clk 0:00:22]}
91... Kf5 {[%clk 0:00:13.8]} 92. Rf8+ {[%clk 0:00:22.4]} 92... Bf6 {[%clk
0:00:14.1]} 93. Kxd6 {[%clk 0:00:22.4]} 93... Nf3 {[%clk 0:00:14.2]} 94. Kd5
{[%clk 0:00:23.3]} 94... Rc1 {[%clk 0:00:12.9]} 95. Rf7 {[%clk 0:00:23]} 95...
c4 {[%clk 0:00:13.3]} 96. Rc7 {[%clk 0:00:23.5]} 96... c3 {[%clk 0:00:13.7]} 97.
Kc4 {[%clk 0:00:24.1]} 97... c2 {[%clk 0:00:14.1]} 98. Kb3 {[%clk 0:00:24.5]}
98... Rb1+ {[%clk 0:00:14.4]} 99. Kxc2 {[%clk 0:00:24.6]} 99... Rb6 {[%clk
0:00:13.8]} 100. Kd3 {[%clk 0:00:23.5]} 100... Rd6+ {[%clk 0:00:13.9]} 101. Ke2
{[%clk 0:00:23.4]} 101... Ne5 {[%clk 0:00:14.5]} 102. Rc5 {[%clk 0:00:23.1]}
102... Re6 {[%clk 0:00:13.6]} 103. Ra5 {[%clk 0:00:23.2]} 103... Bg5 {[%clk
0:00:14]} 104. Kf2 {[%clk 0:00:23]} 104... Rb6 {[%clk 0:00:14.1]} 105. Ra2
{[%clk 0:00:22.3]} 105... Rb3 {[%clk 0:00:14]} 106. Ke2 {[%clk 0:00:22]} 106...
Ng4 {[%clk 0:00:14.1]} 107. Kd1 {[%clk 0:00:21.1]} 107... Bf6 {[%clk 0:00:12.8]}
108. Ra5+ {[%clk 0:00:21]} 108... Be5 {[%clk 0:00:12.6]} 109. Ra8 {[%clk
0:00:20.1]} 109... Ke4 {[%clk 0:00:12.7]} 110. Kd2 {[%clk 0:00:20.4]} 110...
Rb2+ {[%clk 0:00:11.7]} 111. Kc1 {[%clk 0:00:20.5]} 111... Rh2 {[%clk
0:00:11.8]} 112. Ra4+ {[%clk 0:00:20.6]} 112... Bd4 {[%clk 0:00:12.1]} 113. Kb1
{[%clk 0:00:17.8]} 113... Ne3 {[%clk 0:00:12.2]} 114. Rb4 {[%clk 0:00:16.6]}
114... Kd3 {[%clk 0:00:12.5]} 115. Rb3+ {[%clk 0:00:15]} 115... Bc3 {[%clk
0:00:13]} 116. Rb8 {[%clk 0:00:15.7]} 116... Rh1+ {[%clk 0:00:13]} 117. Ka2
{[%clk 0:00:15.7]} 117... Ra1+ {[%clk 0:00:12.1]} 118. Kb3 {[%clk 0:00:16.6]}
118... Rb1+ {[%clk 0:00:12.6]} 119. Ka4 {[%clk 0:00:17.5]} 119... Rxb8 {[%clk
0:00:12.5]} 0-1